bitfinex/quotes_SOLUSD_20240607
["timestamp","ask_amount","ask_price","bid_price","bid_amount"]
[1717785805089,2.3027,160.68,160.58,37.44]
[1717785805269,2.303,160.66,160.55,163.68]
[1717785805583,6.4302,160.69,160.59,37.44]
[1717785805764,2.3027,160.68,160.59,37.44]
[1717785805969,8.7328,160.69,160.59,37.44]
[1717785806588,8.7328,160.69,160.64,82.0]
[1717785807887,10.0,160.85,160.63,37.44]
[1717785807888,22.1165,160.76,160.63,37.44]
[1717785808073,2.3018,160.74,160.63,37.44]
[1717785808396,22.1165,160.76,160.63,37.44]
[1717785808397,2.302,160.73,160.63,37.44]
[1717785808694,2.3019,160.74,160.63,37.44]
[1717785809186,22.1165,160.76,160.6,3.7838]
[1717785809187,22.1165,160.76,160.6,41.2238]
[1717785809485,22.1165,160.76,160.59,15.7546]
[1717785809486,11.5109,160.72,160.59,37.44]
[1717785809679,2.3024,160.7,160.59,37.44]
[1717785809879,2.3026,160.69,160.59,37.44]
[1717785810081,24.6044,160.72,160.59,37.44]
[1717785810264,2.3026,160.69,160.59,37.44]
[1717785810469,20.0,160.72,160.62,37.44]
[1717785810670,20.0,160.75,160.64,82.0]
[1717785811071,2.302,160.73,160.64,119.44]
[1717785811269,2.3021,160.72,160.64,37.44]
[1717785811505,2.302,160.73,160.64,37.44]
[1717785811796,22.1165,160.76,160.64,157.44]
[1717785812095,8.8762,160.76,160.64,157.44]
[1717785812277,2.3018,160.74,160.64,157.44]
[1717785812473,2.3018,160.74,160.64,37.44]
[1717785812673,2.3019,160.74,160.64,157.44]
[1717785812874,6.5746,160.76,160.64,157.44]
[1717785813072,8.8762,160.76,160.64,163.68]
[1717785813303,0.8198837,160.77,160.68,120.0]
[1717785813497,0.8198837,160.77,160.75,37.44]
[1717785813806,0.8198837,160.77,160.74,3.7838]
[1717785814295,0.8198837,160.77,160.76,82.0]
[1717785814690,0.8198837,160.77,160.7,9.61815014]
[1717785815198,0.8198837,160.77,160.69,9.61815014]
[1717785815392,0.8198837,160.77,160.67,120.0]
[1717785815693,0.8198837,160.77,160.68,37.44]
[1717785815897,0.8198837,160.77,160.69,120.0]
[1717785816197,0.8198837,160.77,160.69,37.44]
[1717785816576,0.8198837,160.77,160.63,120.0]
[1717785816774,2.3018,160.74,160.63,120.0]
[1717785816974,2.3019,160.74,160.63,120.0]
[1717785817175,20.8198837,160.77,160.61,126.24]
[1717785817401,6.5378,160.71,160.58,5.03873678]
[1717785817586,22.3024,160.7,160.59,37.44]
[1717785817899,20.0,160.7,160.59,157.44]
[1717785818201,20.0,160.7,160.59,37.44]
[1717785819001,20.0,160.7,160.58,208.24]
[1717785819002,2.3027,160.68,160.58,126.24]
[1717785819202,20.0,160.7,160.56,6.47909646]
[1717785819584,2.3031,160.66,160.56,6.47909646]
[1717785819795,20.0,160.68,160.57,120.0]
[1717785819995,20.0,160.68,160.57,157.44]
[1717785820200,2.3027,160.68,160.57,157.44]
[1717785820701,2.3025,160.69,160.57,157.44]
[1717785821000,2.3027,160.68,160.57,157.44]
[1717785821305,20.0,160.7,160.57,157.44]
[1717785821481,2.3026,160.69,160.57,157.44]
[1717785822111,20.0,160.7,160.6,120.0]
[1717785822606,22.8006,160.71,160.61,37.44]
[1717785822786,22.8006,160.71,160.63,120.0]
[1717785824391,22.2809837,160.77,160.65,157.44]
[1717785824607,22.2809837,160.77,160.67,120.0]
[1717785824793,2.3022,160.72,160.62,43.68]
[1717785824989,2.3022,160.72,160.62,157.44]
[1717785825316,2.302,160.73,160.62,157.44]
[1717785825602,22.2809837,160.77,160.64,120.0]
[1717785825984,2.3017,160.75,160.64,120.0]
[1717785826199,22.3016,160.76,160.64,157.44]
[1717785826705,2.3017,160.75,160.64,157.44]
[1717785827117,20.0,160.76,160.66,157.44]
[1717785827302,22.3016,160.76,160.66,157.44]
[1717785828004,20.0,160.76,160.66,157.44]
[1717785828211,20.0,160.76,160.59,26.69957184]
[1717785828212,22.3015,160.76,160.64,157.44]
[1717785828407,2.3017,160.75,160.64,157.44]
[1717785828710,20.0,160.76,160.64,157.44]
[1717785828891,2.3018,160.74,160.64,157.44]
[1717785829088,2.3017,160.75,160.64,239.44]
[1717785829807,20.0,160.76,160.66,157.44]
[1717785829996,22.2809837,160.77,160.68,157.44]
[1717785830198,7.0508837,160.77,160.71,37.44]
[1717785830503,0.8198837,160.77,160.71,37.44]
[1717785830706,0.8198837,160.77,160.72,120.0]
[1717785830898,0.8198837,160.77,160.72,157.44]
[1717785831416,0.8198837,160.77,160.74,157.44]
[1717785832305,6.0505,160.86,160.76,120.0]
[1717785832605,6.0505,160.86,160.78,157.44]
[1717785832908,6.0505,160.86,160.75,157.44]
[1717785833092,8.3507,160.86,160.75,157.44]
[1717785833700,6.0505,160.86,160.75,157.44]
[1717785834808,6.0505,160.86,160.79,37.44]
[1717785835121,6.0505,160.86,160.77,37.44]
[1717785835613,6.0505,160.86,160.77,157.44]
[1717785835819,6.0505,160.86,160.76,37.44]
[1717785836192,20.0,160.85,160.75,37.44]
[1717785836398,2.3005,160.83,160.75,37.44]
[1717785836808,2.3004,160.84,160.75,37.44]
[1717785837036,20.0,160.85,160.76,37.44]
[1717785837203,2.3003,160.85,160.76,37.44]
[1717785837402,6.0505,160.86,160.78,120.0]
[1717785837827,6.0505,160.86,160.73,6.24]
[1717785837828,13.7942,160.94,160.8,157.44]
[1717785838126,2.2992,160.92,160.82,120.0]
[1717785838328,18.3522,160.89,160.8,37.44]
[1717785838634,16.0525,160.89,160.8,37.44]
[1717785838799,16.0525,160.89,160.81,120.0]
[1717785838994,16.0525,160.89,160.83,157.44]
[1717785839231,0.8198837,160.93,160.83,157.44]
[1717785839556,0.8198837,160.93,160.86,120.0]
[1717785839732,120.0,161.24,160.84,6.1597]
[1717785839733,15.0221,161.19,161.08,120.0]
[1717785839940,15.0221,161.19,161.18,157.44]
[1717785840221,4.5841,161.43,161.18,157.44]
[1717785840222,24.73940045,161.39,161.27,163.68]
[1717785840425,0.4807172,161.39,161.31,120.0]
[1717785840632,0.0386775,161.44,161.38,6.42589448]
[1717785840839,0.0386775,161.44,161.39,1.23959423]
[1717785841006,0.0386775,161.44,161.41,6.40960825]
[1717785841203,0.0386775,161.44,161.38,12.85178896]
[1717785841407,21.7269775,161.44,161.41,12.85178896]
[1717785841601,16.1473,161.5,161.43,12.61108344]
[1717785841801,16.1473,161.5,161.38,25.64586633]
[1717785841802,2.2925,161.4,161.38,25.64586633]
[1717785842124,6.1473,161.44,161.35,25.64586633]
[1717785842440,2.2926,161.39,161.37,25.64586633]
[1717785842725,6.1473,161.38,161.37,25.64586633]
[1717785843098,6.1473,161.38,161.34,3.15429276]
[1717785843296,6.1473,161.38,161.37,3.15429276]
[1717785843503,8.8086,161.37,161.34,3.15429276]
[1717785843803,6.5157,161.36,161.33,27.34157548]
[1717785844121,6.5157,161.36,161.33,3.15429276]
[1717785844627,6.5157,161.36,161.3,3.15429276]
[1717785844934,2.2936,161.32,161.27,3.15429276]
[1717785845232,20.0,161.35,161.22,3.15429276]
[1717785845520,2.2936,161.32,161.22,3.15429276]
[1717785845723,2.2938,161.3,161.2,2.2952]
[1717785846027,2.2945,161.26,161.18,3.15429276]
[1717785846228,6.8797,161.35,161.17,2.2956]
[1717785846229,2.2946,161.25,161.17,2.2956]
[1717785846421,20.0,161.32,161.14,3.15429276]
[1717785846724,32.8419,161.27,161.14,3.15429276]
[1717785846898,2.2948,161.24,161.15,2.2959]
[1717785847103,6.2504,161.38,161.23,120.0]
[1717785847302,8.5432,161.38,161.23,162.0297]
[1717785847504,4.5838,161.44,161.23,162.0297]
[1717785847505,0.24788,161.37,161.28,37.44]
[1717785847708,0.24788,161.37,161.31,2.2937]
[1717785847935,0.24788,161.37,161.3,37.44]
[1717785848235,0.24788,161.37,161.31,76.15568722]
[1717785848633,0.24788,161.37,161.33,2.2933]
[1717785848813,0.24788,161.37,161.31,158.15568722]
[1717785849139,0.24788,161.37,161.33,2.2934]
[1717785849429,0.24788,161.37,161.32,2.2935]
[1717785849633,0.24788,161.37,161.34,2.2932]
[1717785849834,0.24788,161.37,161.24,37.44]
[1717785850012,0.24788,161.37,161.25,157.44]
[1717785850209,2.54068,161.37,161.3,2.2938]
[1717785850726,2.293,161.36,161.29,2.294]
[1717785851426,2.2931,161.35,161.29,2.294]
[1717785851607,2.2931,161.35,161.24,48.18278231]
[1717785851807,8.44691239,161.42,161.24,48.18278231]
[1717785852007,16.2685,161.35,161.24,48.18278231]
[1717785852224,2.2938,161.31,161.24,48.18278231]
[1717785852434,2.2935,161.33,161.25,2.2944]
[1717785852724,16.2685,161.35,161.24,48.18278231]
[1717785852933,2.2942,161.28,161.25,82.0]
[1717785853148,6.3738,161.26,161.19,2.2954]
[1717785853636,6.3738,161.26,161.2,2.2952]
[1717785854042,2.295,161.22,161.18,48.20071857]
[1717785854218,6.2304,161.21,161.18,48.20071857]
[1717785854629,20.0,161.26,161.18,48.20071857]
[1717785854842,15.6168,161.27,161.18,48.20071857]
[1717785854843,6.6311,161.28,161.23,2.2948]
[1717785855014,21.7104,161.35,161.21,157.44]
[1717785855212,6.6311,161.35,161.32,2.2935]
[1717785855533,8.8424,161.42,161.35,2.2931]
[1717785855729,6.8738,161.49,161.3,9.1752]
[1717785855935,4.5829,161.47,161.3,9.1752]
[1717785856130,2.292,161.43,161.39,82.0]
[1717785856316,10.0,161.54,161.39,82.0]
[1717785856636,2.2923,161.41,161.34,2.2931]
[1717785856932,4.5834,161.45,161.34,2.2932]
[1717785857237,2.2927,161.38,161.26,20.6494]
[1717785857445,6.8755,161.45,161.23,4.96057385]
[1717785857446,2.2934,161.34,161.23,4.5896]
[1717785857642,2.2931,161.36,161.29,2.2939]
[1717785857937,2.2922,161.42,161.27,120.0]
[1717785858121,4.5837,161.44,161.28,9.1762]
[1717785858313,2.2925,161.4,161.29,4.5877]
[1717785858513,2.2927,161.38,161.26,4.5888]
[1717785858743,2.2927,161.38,161.31,2.2936]
[1717785859115,2.2925,161.4,161.27,37.44]
[1717785859312,2.293,161.36,161.29,2.2938]
[1717785859553,15.7836,161.43,161.26,4.5887]
[1717785859554,2.2928,161.38,161.26,4.5887]
[1717785859838,2.2925,161.4,161.34,2.2932]
[1717785860140,2.2923,161.41,161.34,2.2932]
[1717785860316,2.2927,161.38,161.28,4.5881]
[1717785860514,2.2929,161.37,161.26,4.5887]
[1717785860714,2.2927,161.38,161.31,2.2936]
[1717785861237,2.2924,161.41,161.34,2.2932]
[1717785861427,2.2924,161.41,161.35,2.2931]
[1717785861828,6.6154,161.43,161.28,120.0]
[1717785862025,6.6154,161.43,161.32,4.587]
[1717785862230,4.5817,161.51,161.4,2.2923]
[1717785862415,4.5817,161.51,161.35,9.1723]
[1717785862618,6.1795,161.53,161.37,9.1712]
[1717785862840,2.2919,161.44,161.33,16.0535]
[1717785863014,2.2917,161.45,161.34,4.5865]
[1717785863219,2.2918,161.44,161.42,82.0]
[1717785863420,2.292,161.43,161.37,2.2928]
[1717785863724,2.292,161.43,161.29,129.1755]
[1717785863725,11.4552,161.5,161.33,6.8801]
[1717785863932,2.2918,161.44,161.38,2.2927]
[1717785864246,2.2919,161.44,161.38,2.2927]
[1717785864423,4.5827,161.48,161.38,2.2926]
[1717785864617,2.2918,161.45,161.39,2.2925]
[1717785864816,4.5827,161.48,161.34,4.5865]
[1717785865027,2.2917,161.46,161.39,2.2925]
[1717785865314,4.5824,161.49,161.38,2.2927]
[1717785865533,2.2918,161.44,161.38,2.2927]
[1717785866046,2.2917,161.45,161.39,2.2925]
[1717785866256,2.2915,161.46,161.39,2.2924]
[1717785866422,2.2915,161.46,161.43,82.0]
[1717785867129,2.2918,161.45,161.38,2.2926]
[1717785867341,9.1645,161.5,161.35,4.586]
[1717785867537,4.5818,161.51,161.42,2.292]
[1717785867739,6.1795,161.53,161.36,37.44]
[1717785867946,2.291,161.5,161.44,2.2917]
[1717785868145,2.2911,161.49,161.43,2.2919]
[1717785868337,2.2914,161.48,161.42,2.292]
[1717785868527,13.0515,161.53,161.44,2.2918]
[1717785868528,2.2911,161.5,161.44,2.2918]
[1717785868740,6.1795,161.53,161.43,2.2919]
[1717785868741,2.2911,161.49,161.43,2.2919]
[1717785869124,10.7607,161.53,161.43,2.2919]
[1717785869346,2.2914,161.48,161.42,2.2921]
[1717785869852,20.0,161.52,161.37,4.5855]
[1717785870026,4.5823,161.49,161.35,9.1726]
[1717785870231,2.2916,161.46,161.39,2.2924]
[1717785870452,20.0,161.48,161.39,2.2924]
[1717785870740,4.5823,161.49,161.38,2.2927]
[1717785870741,2.2919,161.44,161.38,2.2927]
[1717785870945,4.583,161.47,161.37,2.2928]
[1717785871152,2.2919,161.44,161.38,2.2926]
[1717785871646,2.2918,161.45,161.39,2.2924]
[1717785871943,2.2918,161.44,161.38,2.2926]
[1717785872324,2.2917,161.46,161.36,4.586]
[1717785872639,2.2917,161.45,161.39,2.2924]
[1717785872834,2.2917,161.45,161.36,4.586]
[1717785873034,2.2916,161.46,161.36,4.586]
[1717785873350,2.2918,161.44,161.35,11.4656]
[1717785873550,2.2918,161.44,161.34,9.1729]
[1717785873551,2.2919,161.44,161.38,2.2927]
[1717785873752,2.2919,161.44,161.36,82.0]
[1717785873965,2.2918,161.45,161.39,2.2925]
[1717785874145,2.2918,161.45,161.4,2.2923]
[1717785874342,20.0,161.48,161.4,2.2923]
[1717785874343,26.3802,161.48,161.4,2.2923]
[1717785874554,26.3802,161.48,161.39,2.2925]
[1717785874747,20.0,161.48,161.4,2.2923]
[1717785874947,2.2916,161.46,161.4,2.2923]
[1717785875163,20.0,161.48,161.4,2.2923]
[1717785875164,2.2917,161.45,161.4,2.2923]
[1717785875371,2.2918,161.44,161.34,9.1729]
[1717785875569,6.3802,161.45,161.34,9.1729]
[1717785875570,8.6719,161.45,161.39,2.2924]
[1717785875954,2.2916,161.46,161.41,2.2922]
[1717785876978,24.5823,161.5,161.37,4.5856]
[1717785876979,20.0,161.5,161.44,2.2918]
[1717785877149,2.2911,161.49,161.44,2.2918]
[1717785877349,6.6081,161.51,161.41,4.5844]
[1717785877558,8.899,161.51,161.45,2.2916]
[1717785878062,6.6081,161.51,161.43,4.5839]
[1717785878378,15.8326,161.54,161.44,4.5837]
[1717785878578,21.8546,161.54,161.49,2.291]
[1717785878767,2.2906,161.53,161.47,2.2914]
[1717785878972,9.58440626,161.57,161.45,53.30960061]
[1717785878973,21.2768,161.52,161.45,53.30960061]
[1717785879155,23.5676,161.52,161.45,53.30960061]
[1717785879469,2.2908,161.51,161.46,2.2915]
[1717785879672,23.5675,161.52,161.45,53.30960061]
[1717785879889,2.2908,161.51,161.46,2.2915]
[1717785880046,2.2909,161.51,161.45,53.30960061]
[1717785880250,2.2911,161.5,161.45,53.30960061]
[1717785880452,2.2913,161.48,161.43,2.2919]
[1717785881167,2.2914,161.47,161.42,2.2921]
[1717785881491,4.5837,161.44,161.39,53.32941953]
[1717785881655,2.2923,161.41,161.37,53.33602911]
[1717785881962,2.2924,161.4,161.37,53.33602911]
[1717785882151,15.9611,161.44,161.37,53.33602911]
[1717785882359,2.2921,161.42,161.37,55.62882911]
[1717785882661,6.6589,161.43,161.31,4.5873]
[1717785882866,2.2923,161.41,161.35,2.2931]
[1717785883083,2.2926,161.39,161.33,2.2933]
[1717785883571,2.2932,161.35,161.3,53.35917556]
[1717785883777,27.697,161.4,161.3,53.35917556]
[1717785883778,16.2346,161.4,161.37,2.2928]
[1717785883982,16.2346,161.4,161.31,16.0557]
[1717785883983,18.5271,161.4,161.34,2.2932]
[1717785884271,16.2346,161.4,161.35,2.293]
[1717785884592,16.2346,161.4,161.34,82.0]
[1717785884977,2.2926,161.39,161.33,2.2933]
[1717785885184,2.2928,161.37,161.32,2.2935]
[1717785885386,20.0,161.39,161.31,53.3558677]
[1717785885597,4.5854,161.38,161.31,53.3558677]
[1717785885783,2.2932,161.35,161.31,53.3558677]
[1717785885951,16.1921,161.35,161.31,53.3558677]
[1717785886284,8.4351,161.34,161.31,53.3558677]
[1717785886582,10.2185416,161.39,161.31,53.3558677]
[1717785886765,2.2927,161.38,161.31,55.6493677]
[1717785886972,2.2926,161.39,161.33,2.2933]
[1717785887559,8.4524,161.42,161.36,2.293]
[1717785887856,4.5834,161.46,161.38,2.2927]
[1717785888184,2.2915,161.47,161.38,86.5853]
[1717785888485,2.2918,161.45,161.38,82.0]
[1717785888968,6.1602,161.48,161.36,4.5859]
[1717785889153,2.2913,161.48,161.38,4.5852]
[1717785889353,15.842,161.5,161.42,2.2921]
[1717785889555,2.2914,161.48,161.38,7.73949276]
[1717785889779,2.2915,161.47,161.38,7.73949276]
[1717785889981,15.842,161.5,161.38,7.73949276]
[1717785889982,4.5823,161.49,161.4,2.2924]
[1717785890164,2.2917,161.45,161.38,2.2926]
[1717785890363,4.5828,161.47,161.4,3.15429276]
[1717785890774,2.2918,161.44,161.39,3.15429276]
[1717785890980,20.4242,161.5,161.39,3.15429276]
[1717785891282,2.2914,161.48,161.47,3.15429276]
[1717785891465,2.2913,161.48,161.47,3.15429276]
[1717785891881,21.857,161.5,161.44,6.30858553]
[1717785892180,2.2911,161.49,161.48,6.30858553]
[1717785892562,2.2913,161.48,161.47,6.30858553]
[1717785892779,2.2912,161.49,161.47,6.30858553]
[1717785893077,2.2912,161.49,161.38,22.97194318]
[1717785893078,2.2913,161.48,161.45,6.30858553]
[1717785893389,2.2913,161.48,161.46,3.21962429]
[1717785893570,2.29,161.57,161.51,2.2908]
[1717785893882,6.454,161.58,161.49,3.21962429]
[1717785894064,6.454,161.58,161.52,2.2906]
[1717785894379,8.7438,161.58,161.52,2.2906]
[1717785894970,6.454,161.58,161.49,3.21962429]
[1717785895168,2.2902,161.56,161.5,2.291]
[1717785895382,2.2908,161.52,161.46,2.2915]
[1717785895587,4.5805,161.56,161.45,3.21962429]
[1717785895761,17.9037,161.58,161.45,3.21962429]
[1717785896087,2.2903,161.56,161.5,2.2909]
[1717785896280,2.2903,161.55,161.49,2.2911]
[1717785896491,2.2901,161.56,161.5,2.2909]
[1717785896679,11.0337,161.58,161.48,2.2911]
[1717785896885,2.2906,161.53,161.47,2.2914]
[1717785897270,2.2907,161.52,161.46,2.2915]
[1717785897591,4.5804,161.56,161.42,20.6289]
[1717785897592,2.2906,161.53,161.47,2.2914]
[1717785897892,4.5806,161.55,161.43,4.5839]
[1717785898199,2.2908,161.52,161.46,2.2915]
[1717785898379,2.2911,161.5,161.44,2.2917]
[1717785898585,2.2911,161.5,161.41,4.5845]
[1717785898586,2.2913,161.48,161.42,2.2921]
[1717785898795,2.2915,161.47,161.42,2.2921]
[1717785899094,2.2913,161.48,161.42,2.2921]
[1717785899389,2.2912,161.49,161.37,11.18377843]
[1717785899695,2.2911,161.5,161.44,2.2917]
[1717785899870,2.2911,161.49,161.44,2.2917]
[1717785900071,2.291,161.5,161.44,2.2917]
[1717785900291,2.291,161.5,161.44,2.2918]
[1717785900804,6.8726,161.51,161.41,2.2922]
[1717785900969,2.2914,161.47,161.38,4.5854]
[1717785901165,2.2916,161.46,161.4,2.2923]
[1717785901370,2.2914,161.48,161.38,4.5854]
[1717785901598,2.2913,161.48,161.43,2.2919]
[1717785901896,2.2913,161.48,161.33,179.8492]
[1717785901897,15.7695,161.54,161.35,157.44]
[1717785902069,2.2909,161.51,161.45,2.2916]
[1717785902268,15.7695,161.54,161.44,2.2918]
[1717785902269,4.5812,161.53,161.44,2.2918]
[1717785902575,4.5812,161.53,161.35,37.44]
[1717785902576,16.0384,161.49,161.35,16.0516]
[1717785902790,16.0384,161.49,161.33,22.4092]
[1717785902791,6.6073,161.54,161.41,9.1688]
[1717785902792,13.4789,161.54,161.41,9.1688]
[1717785902971,13.4789,161.54,161.37,82.0]
[1717785902972,0.4374242,161.49,161.4,11.4619]
[1717785903293,2.7285242,161.49,161.41,4.5844]
[1717785903499,0.4374242,161.49,161.44,2.2918]
[1717785903801,0.4374242,161.49,161.41,4.5844]
[1717785903974,2.7285242,161.49,161.41,4.5844]
[1717785904177,0.4374242,161.49,161.45,2.2916]
[1717785904378,0.4374242,161.49,161.44,2.2918]
[1717785904572,13.4788,161.54,161.41,9.1688]
[1717785904573,6.6073,161.54,161.41,9.1688]
[1717785904773,2.2911,161.49,161.44,2.2918]
[1717785905105,2.291,161.5,161.45,2.2917]
[1717785905395,2.2911,161.49,161.44,2.2918]
[1717785905599,6.2727,161.51,161.4,4.5848]
[1717785905779,4.97429559,161.56,161.35,13.7586]
[1717785905780,6.2727,161.46,161.35,13.7586]
[1717785906097,8.3613,161.44,161.39,2.2924]
[1717785906274,6.0694,161.44,161.4,2.2923]
[1717785906476,8.3612,161.44,161.39,2.2925]
[1717785906781,2.2921,161.42,161.35,86.5862]
[1717785907000,6.0694,161.46,161.32,15.4139]
[1717785907001,4.5837,161.44,161.33,4.5868]
[1717785907175,2.2924,161.4,161.35,2.293]
[1717785907381,2.2921,161.43,161.37,2.2928]
[1717785907570,19.8189,161.46,161.34,4.5864]
[1717785907776,4.5836,161.45,161.37,2.2927]
[1717785907994,8.5871,161.42,161.37,2.2927]
[1717785908378,2.2923,161.41,161.36,2.2929]
[1717785908675,2.2923,161.41,161.27,26.7290676]
[1717785908676,9.168,161.44,161.27,21.8737]
[1717785908892,10.0,161.52,161.37,4.5855]
[1717785908893,6.2537,161.46,161.37,4.5855]
[1717785909200,2.2917,161.45,161.4,2.2924]
[1717785909407,6.2537,161.46,161.38,4.5852]
[1717785909703,21.17097182,161.5,161.39,4.585]
[1717785910003,21.17097182,161.5,161.37,2.2928]
[1717785910004,2.292,161.43,161.37,2.2928]
[1717785910400,6.2537,161.47,161.31,64.8240677]
[1717785910578,2.2926,161.39,161.34,2.2931]
[1717785910902,6.2537,161.47,161.31,53.3558677]
[1717785911108,2.2928,161.37,161.32,2.2935]
[1717785911278,6.2537,161.34,161.31,53.3558677]
[1717785911482,6.2537,161.34,161.27,2.2942]
[1717785911483,2.2936,161.32,161.27,2.2942]
[1717785911710,2.2934,161.33,161.28,2.2941]
[1717785912006,6.2537,161.34,161.3,2.2938]
[1717785912177,2.2936,161.32,161.27,2.2942]
[1717785912378,2.2937,161.31,161.23,4.5894]
[1717785912613,2.2933,161.34,161.28,2.294]
[1717785912778,8.3315,161.35,161.24,9.1787]
[1717785912978,6.0384,161.35,161.26,20.6494]
[1717785913281,6.0384,161.35,161.24,82.0]
[1717785913486,6.0384,161.35,161.25,4.589]
[1717785913789,16.0875,161.45,161.27,6.4398]
[1717785913992,2.2921,161.43,161.33,6.8801]
[1717785914199,16.0875,161.45,161.35,4.5862]
[1717785914389,16.0875,161.45,161.38,2.2927]
[1717785914588,13.35148565,161.45,161.34,4.5864]
[1717785914804,4.5818,161.51,161.37,4.5855]
[1717785914991,9.44026198,161.51,161.42,2.2921]
[1717785915310,12.9107,161.52,161.46,2.2915]
[1717785915311,6.0384,161.52,161.46,2.2915]
[1717785915508,2.2911,161.49,161.43,2.2919]
[1717785915709,6.0384,161.52,161.4,4.5847]
[1717785916116,6.0384,161.52,161.37,4.5855]
[1717785916314,6.873,161.5,161.34,13.7592]
[1717785916610,2.2919,161.44,161.37,2.2927]
[1717785916815,2.292,161.44,161.35,86.5862]
[1717785917125,2.2917,161.45,161.4,2.2924]
[1717785917412,20.0,161.49,161.37,4.5857]
[1717785917714,2.2914,161.48,161.37,4.5857]
[1717785917910,11.1769,161.51,161.34,9.1727]
[1717785917911,2.2911,161.49,161.34,120.0]
[1717785918119,2.291,161.5,161.44,2.2918]
[1717785918294,15.9699,161.52,161.45,2.2917]
[1717785918501,15.9699,161.52,161.41,4.5844]
[1717785918811,15.9699,161.52,161.44,2.2917]
[1717785919724,15.9699,161.52,161.38,2.2926]
[1717785919725,2.2919,161.44,161.38,2.2926]
[1717785919894,2.2919,161.44,161.33,6.8803]
[1717785919895,2.2917,161.45,161.33,6.8803]
[1717785920217,21.44631313,161.53,161.4,4.5848]
[1717785920393,20.0,161.52,161.4,4.5848]
[1717785920592,26.02761313,161.53,161.4,4.5848]
[1717785920903,2.291,161.5,161.45,2.2917]
[1717785921109,6.5967,161.49,161.37,11.464]
[1717785921316,2.2918,161.45,161.37,4.5855]
[1717785921614,6.5967,161.49,161.42,2.292]
[1717785921816,2.2917,161.45,161.36,55.2788082]
[1717785922021,2.2917,161.46,161.4,2.2923]
[1717785922205,2.2916,161.46,161.4,2.2923]
[1717785922408,2.2916,161.46,161.38,4.5854]
[1717785922709,2.2917,161.45,161.36,59.8648082]
[1717785922906,2.2927,161.38,161.36,55.2788082]
[1717785923227,2.2926,161.39,161.3,11.4691]
[1717785923398,31.4596,161.44,161.31,4.5873]
[1717785923601,24.5837,161.44,161.36,2.2929]
[1717785923798,2.2923,161.41,161.32,4.587]
[1717785924021,2.2921,161.43,161.27,43.8798]
[1717785924196,21.8891,161.43,161.34,4.5865]
[1717785924398,21.8891,161.43,161.31,4.5872]
[1717785924598,21.8891,161.43,161.29,6.8817]
[1717785924599,2.2928,161.38,161.29,4.5879]
[1717785924820,2.2927,161.38,161.33,2.2933]
[1717785925019,6.4195,161.38,161.29,4.5879]
[1717785925223,6.4195,161.38,161.29,9.1756]
[1717785925601,6.4195,161.38,161.3,4.5876]
[1717785925805,2.2924,161.4,161.31,4.5873]
[1717785926009,2.2923,161.41,161.33,4.5868]
[1717785926530,2.2924,161.4,161.34,2.2931]
[1717785926720,2.2925,161.39,161.31,9.1744]
[1717785926926,2.2924,161.4,161.35,2.2931]
[1717785927407,2.2928,161.38,161.32,2.2934]
[1717785927723,6.4175,161.39,161.34,2.2932]
[1717785927724,8.7101,161.39,161.34,2.2932]
[1717785928132,6.4175,161.39,161.35,2.2931]